{"text_format":"1","workbook":"xlsx","n_sheets":13,"sheets":["Instruction","Cover Sheet","DISCOURSE","QUANT & COMP THINKING","REASONING IN NATURAL SCIENCES","DESIGN AND THE ARTS","REASONING IN SOCIAL SCIENCES","HUMANITIES","IDENTITY AND EQUITY","ETHICAL REASONING","INTERCULTURAL GLOBAL AWARENESS","Summary","List Entries"],"not_rendered":{"charts":0,"images":0,"macros":1,"external_links":0,"defined_names":9,"comments":0,"pivot_tables":0},"unopened":[],"bounds":{"document_bytes":16777216,"sheet_cells":100000,"rows_first":2000,"rows_last":500,"rows_between":2000,"halvings":0,"cell_chars":16384,"cell_head_chars":4096},"cells_cut":0,"cells_raw":0,"read":"whole","date_system":"1900"}

{"sheet":"Instruction","index":0,"n_rows":10,"n_cols":3,"rows_kept":10,"cut":false,"hidden":true,"merged":[]}
[]
[]
[]
[]
[]
[]
[null,null,"Welcome to the Pathways Assessment Reporting Form. "]
[null,null,"You may need to enable editing, content, and/or macros before entering data."]
[null,null,"If you receive an error message after clicking the Start button below, "]
[null,null,"please close this workbook and enable macros when re-opening the file."]

{"sheet":"Cover Sheet","index":1,"n_rows":37,"n_cols":6,"rows_kept":37,"cut":false,"hidden":false,"merged":[[9,3,9,6],[1,2,1,6],[4,3,4,6],[5,3,5,6],[6,3,6,6],[7,3,7,6],[8,3,8,6],[3,3,3,6]]}
[]
[null,null,"Pathways Assessment Reporting Form"]
[]
[null,null,"Semester/Year","Enter Semester and Year Course Was Taught"]
[null,null,"Course Prefix","Enter Course Prefix"]
[null,null,"Course Number","Enter Course Number"]
[null,null,"Course CRN(s)","Enter CRN"]
[null,null,"Course Title","Enter Course Title"]
[null,null,"Instructor Name","Enter Instructor Name"]
[null,null,"Instructor Email","Enter Email"]
[]
[null,"For which Core Concept(s) will you be submitting data? Please check each Core Concept"]
[null,"that applies. Selected Core Concepts should be consistent with those identified in the "]
[null,"official course proposal."]
[]
[null,null,null,"Discourse",null,false]
[null,null,null,"Quantitative and Computational Thinking",null,false]
[null,null,null,"Reasoning in the Natural Sciences",null,false]
[null,null,null,"Critique and Practice in Design and the Arts",null,false]
[null,null,null,"Reasoning in the Social Sciences",null,false]
[null,null,null,"Critical Thinking in the Humanities",null,false]
[null,null,null,"Critical Analysis of Identity and Equity in the United States",null,false]
[]
[null,"For which Integrative Concept(s) will you be submitting data? Please check each Integrative"]
[null,"concept that applies. Selected Integrative Concepts should be consistent with those identified "]
[null,"in the official course proposal."]
[null,null,null,"Ethical Reasoning",null,false]
[null,null,null,"Intercultural and Global Awareness",null,false]
[]
[null,"Tabs below are displayed based on your choice of concepts. Click on each tab to"]
[null,"complete the reporting table associated with the specific concept. If you select \"See"]
[null,"attached assignment\" as a measure for one or more student learning outcomes, please"]
[null,"REMEMBER TO ATTACH the file(s) when you submit this document."]
[]
[null,"For assistance with this reporting form or Pathways assessment in general, please contact "]
[null,"Molly Hall (mrhall@vt.edu; 231-5432) or Bethany Bodo (bbodo@vt.edu; 231-6003) in the "]
[null,"Assessment & Evaluation unit in the Office of Academic Decision Support."]

{"sheet":"DISCOURSE","index":2,"n_rows":11,"n_cols":14,"rows_kept":11,"cut":false,"hidden":true,"merged":[[4,7,4,8],[4,9,4,10],[4,11,4,12]]}
[]
[]
[null,"Please complete the following table for DISCOURSE. Courses addressing this concept must assess ALL of the student learning outcomes.  "]
[]
[null,"Student Learning Outcome","Was this student learning outcome measured in your course?","Assessment Measure","Please give more detail regarding the measure you chose and/or further specify “other” response","Assessment Criteria\n(Applying the Pathways Rubrics)","Total Number of Students Assessed","Below Competent",null,"Competent",null,"Above Competent",null,"Total Percentage of Students"]
[null,null,"Select from drop down list","Select from drop down list","Enter text description below","Enter text description below","Total Number of Students","Number of Students","Percentage of Students","Number of Students","Percentage of Students","Number of Students","Percentage of Students","Total Percentage"]
[null,"1. Discover and comprehend information from a variety of written, oral, and visual sources.","*SELECT*","*SELECT*",null,null,null,null,{"$f":"IFERROR(H7/G7, 0)","v":0},null,{"$f":"IFERROR(J7/G7, 0)","v":0},null,{"$f":"IFERROR(L7/G7, 0)","v":0},{"$f":"IFERROR($I7+$K7+$M7, 0)","v":0}]
[null,"2. Analyze and evaluate the content and intent of information from diverse sources.  ","*SELECT*","*SELECT*",null,null,null,null,{"$f":"IFERROR(H8/G8, 0)","v":0},null,{"$f":"IFERROR(J8/G8, 0)","v":0},null,{"$f":"IFERROR(L8/G8, 0)","v":0},{"$f":"IFERROR($I8+$K8+$M8, 0)","v":0}]
[null,"3. Develop effective content that is appropriate to a specific context, audience, and/or purpose.","*SELECT*","*SELECT*",null,null,null,null,{"$f":"IFERROR(H9/G9, 0)","v":0},null,0,null,0,0]
[null,"4. Exchange ideas effectively with an audience.  ","*SELECT*","*SELECT*",null,null,null,null,{"$f":"IFERROR(H10/G10, 0)","v":0},null,0,null,0,0]
[null,"5. Assess the product / presentation, including feedback from readers or listeners.  ","*SELECT*","*SELECT*",null,null,null,null,{"$f":"IFERROR(H11/G11, 0)","v":0},null,0,null,0,0]

{"sheet":"QUANT & COMP THINKING","index":3,"n_rows":12,"n_cols":14,"rows_kept":12,"cut":false,"hidden":true,"merged":[[4,7,4,8],[4,9,4,10],[4,11,4,12]]}
[]
[]
[null,"Please complete the following table for QUANTITATIVE AND COMPUTATIONAL THINKING. Courses addressing this concept must assess A MAJORITY of the student learning outcomes.  "]
[]
[null,"Student Learning Outcome","Was this student learning outcome measured in your course?","Assessment Measure","Please give more detail regarding the measure you chose and/or further specify “other” response","Assessment Criteria\n(Applying the Pathways Rubrics)","Total Number of Students Assessed","Below Competent",null,"Competent",null,"Above Competent",null,"Total Percentage of Students"]
[null,null,"Select from drop down list","Select from drop down list","Enter text description below","Enter text description below","Total Number of Students","Number of Students","Percentage of Students","Number of Students","Percentage of Students","Number of Students","Percentage of Students","Total Percentage"]
[null,"1. Explain the application of computational or quantitative thinking across multiple knowledge domains.","*SELECT*","*SELECT*",null,null,null,null,{"$f":"IFERROR(H7/G7, 0)","v":0},null,{"$f":"IFERROR(J7/G7, 0)","v":0},null,{"$f":"IFERROR(L7/G7, 0)","v":0},{"$f":"IFERROR($I7+$K7+$M7, 0)","v":0}]
[null,"2. Apply the foundational principles of computational or quantitative thinking to frame a question and devise a solution in a particular field of study.  ","*SELECT*","*SELECT*",null,null,null,null,{"$f":"IFERROR(H8/G8, 0)","v":0},null,{"$f":"IFERROR(J8/G8, 0)","v":0},null,{"$f":"IFERROR(L8/G8, 0)","v":0},{"$f":"IFERROR($I8+$K8+$M8, 0)","v":0}]
[null,"3. Identify the impacts of computing and information technology on humanity.","*SELECT*","*SELECT*",null,null,null,null,0,null,0,null,0,0]
[null,"4. Construct a model based on computational methods to analyze complex or large-scale phenomenon.","*SELECT*","*SELECT*",null,null,null,null,0,null,0,null,0,0]
[null,"5. Draw valid quantitative inferences about situations characterized by inherent uncertainty.   ","*SELECT*","*SELECT*",null,null,null,null,0,null,0,null,{"$f":"IFERROR(L11/G11, 0)","v":0},0]
[null,"6. Evaluate conclusions drawn from or decisions based on quantitative data.","*SELECT*","*SELECT*",null,null,null,null,0,null,0,null,0,0]

{"sheet":"REASONING IN NATURAL SCIENCES","index":4,"n_rows":10,"n_cols":14,"rows_kept":10,"cut":false,"hidden":true,"merged":[[4,7,4,8],[4,9,4,10],[4,11,4,12]]}
[]
[]
[null,"Please complete the following table for REASONING IN THE NATURAL SCIENCES. Courses addressing this concept must assess A MAJORITY of the student learning outcomes.  "]
[]
[null,"Student Learning Outcome","Was this student learning outcome measured in your course?","Assessment Measure","Please give more detail regarding the measure you chose and/or further specify “other” response","Assessment Criteria\n(Applying the Pathways Rubrics)","Total Number of Students Assessed","Below Competent",null,"Competent",null,"Above Competent",null,"Total Percentage of Students"]
[null,null,"Select from drop down list","Select from drop down list","Enter text description below","Enter text description below","Total Number of Students","Number of Students","Percentage of Students","Number of Students","Percentage of Students","Number of Students","Percentage of Students","Total Percentage"]
[null,"1. Explain the foundational knowledge of a particular scientific discipline.","*SELECT*","*SELECT*",null,null,null,null,{"$f":"IFERROR(H7/G7, 0)","v":0},null,{"$f":"IFERROR(J7/G7, 0)","v":0},null,{"$f":"IFERROR(L7/G7, 0)","v":0},{"$f":"IFERROR($I7+$K7+$M7, 0)","v":0}]
[null,"2. Apply principles and techniques of scientific inquiry. ","*SELECT*","*SELECT*",null,null,null,null,{"$f":"IFERROR(H8/G8, 0)","v":0},null,{"$f":"IFERROR(J8/G8, 0)","v":0},null,{"$f":"IFERROR(L8/G8, 0)","v":0},{"$f":"IFERROR($I8+$K8+$M8, 0)","v":0}]
[null,"3. Evaluate the credibility and the use/misuse of scientific information.","*SELECT*","*SELECT*",null,null,null,null,0,null,0,null,0,0]
[null,"4. Analyze the reciprocal impact of science and society.  ","*SELECT*","*SELECT*",null,null,null,null,0,null,0,null,0,0]

{"sheet":"DESIGN AND THE ARTS","index":5,"n_rows":11,"n_cols":14,"rows_kept":11,"cut":false,"hidden":true,"merged":[[4,7,4,8],[4,9,4,10],[4,11,4,12]]}
[]
[]
[null,"Please complete the following table for CRITIQUE AND PRACTICE IN DESIGN AND THE ARTS. Courses addressing this concept must assess A MAJORITY of the student learning outcomes.  "]
[]
[null,"Student Learning Outcome","Was this student learning outcome measured in your course?","Assessment Measure","Please give more detail regarding the measure you chose and/or further specify “other” response","Assessment Criteria\n(Applying the Pathways Rubrics)","Total Number of Students Assessed","Below Competent",null,"Competent",null,"Above Competent",null,"Total Percentage of Students"]
[null,null,"Select from drop down list","Select from drop down list","Enter text description below","Enter text description below","Total Number of Students","Number of Students","Percentage of Students","Number of Students","Percentage of Students","Number of Students","Percentage of Students","Total Percentage"]
[null,"1. Identify and apply formal elements of design or the arts. ","*SELECT*","*SELECT*",null,null,null,null,{"$f":"IFERROR(H7/G7, 0)","v":0},null,{"$f":"IFERROR(J7/G7, 0)","v":0},null,{"$f":"IFERROR(L7/G7, 0)","v":0},{"$f":"IFERROR($I7+$K7+$M7, 0)","v":0}]
[null,"2. Explain the historical context of design or the arts.   ","*SELECT*","*SELECT*",null,null,null,null,{"$f":"IFERROR(H8/G8, 0)","v":0},null,{"$f":"IFERROR(J8/G8, 0)","v":0},null,{"$f":"IFERROR(L8/G8, 0)","v":0},{"$f":"IFERROR($I8+$K8+$M8, 0)","v":0}]
[null,"3. Apply interpretive strategies or methodologies in design or the arts. ","*SELECT*","*SELECT*",null,null,null,null,0,null,0,null,0,0]
[null,"4. Employ skills, tools, and methods of working in design or the arts.   ","*SELECT*","*SELECT*",null,null,null,null,0,null,0,null,0,0]
[null,"5. Produce a fully developed work through iterative processes of design or the arts. ","*SELECT*","*SELECT*",null,null,null,null,0,null,0,null,0,0]

{"sheet":"REASONING IN SOCIAL SCIENCES","index":6,"n_rows":10,"n_cols":14,"rows_kept":10,"cut":false,"hidden":true,"merged":[[4,7,4,8],[4,9,4,10],[4,11,4,12]]}
[]
[]
[null,"Please complete the following table for REASONING IN THE SOCIAL SCIENCES. Courses addressing this concept must assess A MAJORITY of the student learning outcomes.  "]
[]
[null,"Student Learning Outcome","Was this student learning outcome measured in your course?","Assessment Measure","Please give more detail regarding the measure you chose and/or further specify “other” response","Assessment Criteria\n(Applying the Pathways Rubrics)","Total Number of Students Assessed","Below Competent",null,"Competent",null,"Above Competent",null,"Total Percentage of Students"]
[null,null,"Select from drop down list","Select from drop down list","Enter text description below","Enter text description below","Total Number of Students","Number of Students","Percentage of Students","Number of Students","Percentage of Students","Number of Students","Percentage of Students","Total Percentage"]
[null,"1. Identify fundamental concepts of the social sciences.","*SELECT*","*SELECT*",null,null,null,null,{"$f":"IFERROR(H7/G7, 0)","v":0},null,{"$f":"IFERROR(J7/G7, 0)","v":0},null,{"$f":"IFERROR(L7/G7, 0)","v":0},{"$f":"IFERROR($I7+$K7+$M7, 0)","v":0}]
[null,"2. Analyze human behavior, social institutions, and/or patterns of culture using theories and methods of the social sciences.  ","*SELECT*","*SELECT*",null,null,null,null,{"$f":"IFERROR(H8/G8, 0)","v":0},null,{"$f":"IFERROR(J8/G8, 0)","v":0},null,{"$f":"IFERROR(L8/G8, 0)","v":0},{"$f":"IFERROR($I8+$K8+$M8, 0)","v":0}]
[null,"3. Identify interconnections among and differences between social institutions, groups, and individuals. ","*SELECT*","*SELECT*",null,null,null,null,0,null,0,null,0,0]
[null,"4. Analyze the ways in which values and beliefs relate to human behavior and social relationships.  ","*SELECT*","*SELECT*",null,null,null,null,0,null,0,null,0,0]

{"sheet":"HUMANITIES","index":7,"n_rows":10,"n_cols":14,"rows_kept":10,"cut":false,"hidden":true,"merged":[[4,7,4,8],[4,9,4,10],[4,11,4,12]]}
[]
[]
[null,"Please complete the following table for CRITICAL THINKING IN THE HUMANITIES. Courses addressing this concept must assess A MAJORITY of the student learning outcomes.  "]
[]
[null,"Student Learning Outcome","Was this student learning outcome measured in your course?","Assessment Measure","Please give more detail regarding the measure you chose and/or further specify “other” response","Assessment Criteria\n(Applying the Pathways Rubrics)","Total Number of Students Assessed","Below Competent",null,"Competent",null,"Above Competent",null,"Total Percentage of Students"]
[null,null,"Select from drop down list","Select from drop down list","Enter text description below","Enter text description below","Total Number of Students","Number of Students","Percentage of Students","Number of Students","Percentage of Students","Number of Students","Percentage of Students","Total Percentage"]
[null,"1. Identify fundamental concepts of the humanities.","*SELECT*","*SELECT*",null,null,null,null,{"$f":"IFERROR(H7/G7, 0)","v":0},null,{"$f":"IFERROR(J7/G7, 0)","v":0},null,{"$f":"IFERROR(L7/G7, 0)","v":0},{"$f":"IFERROR($I7+$K7+$M7, 0)","v":0}]
[null,"2. Analyze texts and other created artifacts using theories and methods of the humanities.  ","*SELECT*","*SELECT*",null,null,null,null,{"$f":"IFERROR(H8/G8, 0)","v":0},null,{"$f":"IFERROR(J8/G8, 0)","v":0},null,{"$f":"IFERROR(L8/G8, 0)","v":0},{"$f":"IFERROR($I8+$K8+$M8, 0)","v":0}]
[null,"3. Interpret texts and other created artifacts within multiple historical, intellectual, and cultural contexts.","*SELECT*","*SELECT*",null,null,null,null,0,null,0,null,0,0]
[null,"4. Synthesize multiple complex sources and create a coherent narrative or argument.   ","*SELECT*","*SELECT*",null,null,null,null,0,null,0,null,0,0]

{"sheet":"IDENTITY AND EQUITY","index":8,"n_rows":11,"n_cols":14,"rows_kept":11,"cut":false,"hidden":true,"merged":[[4,7,4,8],[4,9,4,10],[4,11,4,12]]}
[]
[]
[null,"Please complete the following table for CRITICAL ANALYSIS OF IDENTITY AND EQUITY IN THE UNITED STATES. Courses addressing this concept must assess A MAJORITY of the student learning outcomes.  "]
[]
[null,"Student Learning Outcome","Was this student learning outcome measured in your course?","Assessment Measure","Please give more detail regarding the measure you chose and/or further specify “other” response","Assessment Criteria\n(Applying the Pathways Rubrics)","Total Number of Students Assessed","Below Competent",null,"Competent",null,"Above Competent",null,"Total Percentage of Students"]
[null,null,"Select from drop down list","Select from drop down list","Enter text description below","Enter text description below","Total Number of Students","Number of Students","Percentage of Students","Number of Students","Percentage of Students","Number of Students","Percentage of Students","Total Percentage"]
[null,"1. Analyze how social identities, statuses, space, place, traditions, and histories of inequity and power shape human experience in the United States (particularly or in comparative perspective). ","*SELECT*","*SELECT*",null,null,null,null,{"$f":"IFERROR(H7/G7, 0)","v":0},null,{"$f":"IFERROR(J7/G7, 0)","v":0},null,{"$f":"IFERROR(L7/G7, 0)","v":0},{"$f":"IFERROR($I7+$K7+$M7, 0)","v":0}]
[null,"2. Analyze social equity and diversity in the United States (particularly or in comparative perspective) through multiple perspectives on power and identity.","*SELECT*","*SELECT*",null,null,null,null,{"$f":"IFERROR(H8/G8, 0)","v":0},null,{"$f":"IFERROR(J8/G8, 0)","v":0},null,{"$f":"IFERROR(L8/G8, 0)","v":0},{"$f":"IFERROR($I8+$K8+$M8, 0)","v":0}]
[null,"3. Demonstrate how creative works analyze and/or reimagine diversity in human experiences in the United States (particularly or in comparative perspective).  ","*SELECT*","*SELECT*",null,null,null,null,0,null,0,null,0,0]
[null,"4. Demonstrate how aesthetic and cultural expressions mediate identities, statuses, space, place, formal traditions, and/or historical contexts in the United States (particularly or in comparative perspective).   ","*SELECT*","*SELECT*",null,null,null,null,0,null,0,null,0,0]
[null,"5. Analyze the interactive relationships between place, space, identity formation, and sense of community in the United States (particularly or in comparative perspective). ","*SELECT*","*SELECT*",null,null,null,null,0,null,0,null,0,0]

{"sheet":"ETHICAL REASONING","index":9,"n_rows":9,"n_cols":14,"rows_kept":9,"cut":false,"hidden":true,"merged":[[4,7,4,8],[4,9,4,10],[4,11,4,12]]}
[]
[]
[null,"Please complete the following table for ETHICAL REASONING. Courses addressing this concept must assess A MAJORITY of the student learning outcomes.  "]
[]
[null,"Student Learning Outcome","Was this student learning outcome measured in your course?","Assessment Measure","Please give more detail regarding the measure you chose and/or further specify “other” response","Assessment Criteria\n(Applying the Pathways Rubrics)","Total Number of Students Assessed","Below Competent",null,"Competent",null,"Above Competent",null,"Total Percentage of Students"]
[null,null,"Select from drop down list","Select from drop down list","Enter text description below","Enter text description below","Total Number of Students","Number of Students","Percentage of Students","Number of Students","Percentage of Students","Number of Students","Percentage of Students","Total Percentage"]
[null,"1. Explain and contrast relevant ethical theories.  ","*SELECT*","*SELECT*","",null,"","",{"$f":"IFERROR(H7/G7, 0)","v":0},"",{"$f":"IFERROR(J7/G7, 0)","v":0},null,{"$f":"IFERROR(L7/G7, 0)","v":0},{"$f":"IFERROR($I7+$K7+$M7, 0)","v":0}]
[null,"2. Identify ethical issues in a complex context.    ","*SELECT*","*SELECT*",null,null,"","",{"$f":"IFERROR(H8/G8, 0)","v":0},null,{"$f":"IFERROR(J8/G8, 0)","v":0},null,{"$f":"IFERROR(L8/G8, 0)","v":0},{"$f":"IFERROR($I8+$K8+$M8, 0)","v":0}]
[null,"3. Articulate and defend positions on ethical issues in a way that is both reasoned and informed by the complexities of those situations.  ","*SELECT*","*SELECT*",null,null,"",null,0,null,0,null,0,0]

{"sheet":"INTERCULTURAL GLOBAL AWARENESS","index":10,"n_rows":9,"n_cols":14,"rows_kept":9,"cut":false,"hidden":true,"merged":[[4,7,4,8],[4,9,4,10],[4,11,4,12]]}
[]
[]
[null,"Please complete the following table for INTERCULTURAL AND GLOBAL AWARENESS. Courses addressing this concept must assess A MAJORITY of the student learning outcomes.  "]
[]
[null,"Student Learning Outcome","Was this student learning outcome measured in your course?","Assessment Measure","Please give more detail regarding the measure you chose and/or further specify “other” response","Assessment Criteria\n(Applying the Pathways Rubrics)","Total Number of Students Assessed","Below Competent",null,"Competent",null,"Above Competent",null,"Total Percentage of Students"]
[null,null,"Select from drop down list","Select from drop down list","Enter text description below","Enter text description below","Total Number of Students","Number of Students","Percentage of Students","Number of Students","Percentage of Students","Number of Students","Percentage of Students","Total Percentage"]
[null,"1. Identify advantages and challenges of diversity and inclusion in communities and organizations. ","*SELECT*","*SELECT*","",null,null,null,{"$f":"IFERROR(H7/G7, 0)","v":0},null,{"$f":"IFERROR(J7/G7, 0)","v":0},null,{"$f":"IFERROR(L7/G7, 0)","v":0},{"$f":"IFERROR($I7+$K7+$M7, 0)","v":0}]
[null,"2. Interpret an intercultural experience from both one’s own and another’s worldview.    ","*SELECT*","*SELECT*",null,null,null,null,{"$f":"IFERROR(H8/G8, 0)","v":0},null,{"$f":"IFERROR(J8/G8, 0)","v":0},null,{"$f":"IFERROR(L8/G8, 0)","v":0},{"$f":"IFERROR($I8+$K8+$M8, 0)","v":0}]
[null,"3. Address significant global challenges and opportunities in the natural and human world. ","*SELECT*","*SELECT*",null,null,null,null,0,null,0,null,0,0]

{"sheet":"Summary","index":11,"n_rows":17,"n_cols":50,"rows_kept":17,"cut":false,"hidden":true,"merged":[]}
["Course Prefix",{"$f":"'Cover Sheet'!$D5","v":"Enter Course Prefix"}]
["Course Number",{"$f":"'Cover Sheet'!$D6","v":"Enter Course Number"}]
["Course CRN",{"$f":"'Cover Sheet'!$D7","v":"Enter CRN"}]
["Course Title",{"$f":"'Cover Sheet'!$D8","v":"Enter Course Title"}]
["Instructor Name",{"$f":"'Cover Sheet'!$D9","v":"Enter Instructor Name"}]
["Instructor Email",{"$f":"'Cover Sheet'!$D10","v":"Enter Email"}]
[null,null,"Indicator 1",null,null,null,null,null,null,null,"Indicator 2",null,null,null,null,null,null,null,"Indicator 3",null,null,null,null,null,null,null,"Indicator 4",null,null,null,null,null,null,null,"Indicator 5",null,null,null,null,null,null,null,"Indicator 6"]
[null,"Outcome Areas","Total Number of Students","# Below","% Below","# Comp","% Comp","# Above","% Above","Total %","Total Number of Students","# Below","% Below","# Comp","% Comp","# Above","% Above","Total %","Total Number of Students","# Below","% Below","# Comp","% Comp","# Above","% Above","Total %","Total Number of Students","# Below","% Below","# Comp","% Comp","# Above","% Above","Total %","Total Number of Students","# Below","% Below","# Comp","% Comp","# Above","% Above","Total %","Total Number of Students","# Below","% Below","# Comp","% Comp","# Above","% Above","Total %"]
["Learning Outcome Areas",{"$f":"IF('Cover Sheet'!$F$16 = TRUE, \"Discourse\", \"\")","v":""},{"$f":"IF('Cover Sheet'!$F$16 = TRUE, DISCOURSE!G7, \"\")","v":""},{"$f":"IF('Cover Sheet'!$F$16 = TRUE, DISCOURSE!H7, \"\")","v":""},{"$f":"IF('Cover Sheet'!$F$16 = TRUE, DISCOURSE!I7, \"\")","v":""},{"$f":"IF('Cover Sheet'!$F$16 = TRUE, DISCOURSE!J7, \"\")","v":""},{"$f":"IF('Cover Sheet'!$F$16 = TRUE, DISCOURSE!K7, \"\")","v":""},{"$f":"IF('Cover Sheet'!$F$16 = TRUE, DISCOURSE!L7, \"\")","v":""},{"$f":"IF('Cover Sheet'!$F$16 = TRUE, DISCOURSE!M7, \"\")","v":""},{"$f":"IF('Cover Sheet'!$F$16 = TRUE, DISCOURSE!N7, \"\")","v":""},{"$f":"IF('Cover Sheet'!$F$16 = TRUE, DISCOURSE!G8, \"\")","v":""},{"$f":"IF('Cover Sheet'!$F$16 = TRUE, DISCOURSE!H8, \"\")","v":""},{"$f":"IF('Cover Sheet'!$F$16 = TRUE, DISCOURSE!I8, \"\")","v":""},{"$f":"IF('Cover Sheet'!$F$16 = TRUE, DISCOURSE!J8, \"\")","v":""},{"$f":"IF('Cover Sheet'!$F$16 = TRUE, DISCOURSE!K8, \"\")","v":""},{"$f":"IF('Cover Sheet'!$F$16 = TRUE, DISCOURSE!L8, \"\")","v":""},{"$f":"IF('Cover Sheet'!$F$16 = TRUE, DISCOURSE!M8, \"\")","v":""},{"$f":"IF('Cover Sheet'!$F$16 = TRUE, DISCOURSE!N8, \"\")","v":""},{"$f":"IF('Cover Sheet'!$F$16 = TRUE, DISCOURSE!G9, \"\")","v":""},{"$f":"IF('Cover Sheet'!$F$16 = TRUE, DISCOURSE!H9, \"\")","v":""},{"$f":"IF('Cover Sheet'!$F$16 = TRUE, DISCOURSE!I9, \"\")","v":""},{"$f":"IF('Cover Sheet'!$F$16 = TRUE, DISCOURSE!J9, \"\")","v":""},{"$f":"IF('Cover Sheet'!$F$16 = TRUE, DISCOURSE!K9, \"\")","v":""},{"$f":"IF('Cover Sheet'!$F$16 = TRUE, DISCOURSE!L9, \"\")","v":""},{"$f":"IF('Cover Sheet'!$F$16 = TRUE, DISCOURSE!M9, \"\")","v":""},{"$f":"IF('Cover Sheet'!$F$16 = TRUE, DISCOURSE!N9, \"\")","v":""},{"$f":"IF('Cover Sheet'!$F$16 = TRUE, DISCOURSE!G10, \"\")","v":""},{"$f":"IF('Cover Sheet'!$F$16 = TRUE, DISCOURSE!H10, \"\")","v":""},{"$f":"IF('Cover Sheet'!$F$16 = TRUE, DISCOURSE!I10, \"\")","v":""},{"$f":"IF('Cover Sheet'!$F$16 = TRUE, DISCOURSE!J10, \"\")","v":""},{"$f":"IF('Cover Sheet'!$F$16 = TRUE, DISCOURSE!K10, \"\")","v":""},{"$f":"IF('Cover Sheet'!$F$16 = TRUE, DISCOURSE!L10, \"\")","v":""},{"$f":"IF('Cover Sheet'!$F$16 = TRUE, DISCOURSE!M10, \"\")","v":""},{"$f":"IF('Cover Sheet'!$F$16 = TRUE, DISCOURSE!N10, \"\")","v":""},{"$f":"IF('Cover Sheet'!$F$16 = TRUE, DISCOURSE!G11, \"\")","v":""},{"$f":"IF('Cover Sheet'!$F$16 = TRUE, DISCOURSE!H11, \"\")","v":""},{"$f":"IF('Cover Sheet'!$F$16 = TRUE, DISCOURSE!I11, \"\")","v":""},{"$f":"IF('Cover Sheet'!$F$16 = TRUE, DISCOURSE!J11, \"\")","v":""},{"$f":"IF('Cover Sheet'!$F$16 = TRUE, DISCOURSE!K11, \"\")","v":""},{"$f":"IF('Cover Sheet'!$F$16 = TRUE, DISCOURSE!L11, \"\")","v":""},{"$f":"IF('Cover Sheet'!$F$16 = TRUE, DISCOURSE!M11, \"\")","v":""},{"$f":"IF('Cover Sheet'!$F$16 = TRUE, DISCOURSE!N11, \"\")","v":""}]
[null,{"$f":"IF('Cover Sheet'!$F$17 = TRUE, \"Quantitative and Computational Thinking\", \"\")","v":""},{"$f":"IF('Cover Sheet'!$F$17 = TRUE, 'QUANT & COMP THINKING'!G7, \"\")","v":""},{"$f":"IF('Cover Sheet'!$F$17 = TRUE, 'QUANT & COMP THINKING'!H7, \"\")","v":""},{"$f":"IF('Cover Sheet'!$F$17 = TRUE, 'QUANT & COMP THINKING'!I7, \"\")","v":""},{"$f":"IF('Cover Sheet'!$F$17 = TRUE, 'QUANT & COMP THINKING'!J7, \"\")","v":""},{"$f":"IF('Cover Sheet'!$F$17 = TRUE, 'QUANT & COMP THINKING'!K7, \"\")","v":""},{"$f":"IF('Cover Sheet'!$F$17 = TRUE, 'QUANT & COMP THINKING'!L7, \"\")","v":""},{"$f":"IF('Cover Sheet'!$F$17 = TRUE, 'QUANT & COMP THINKING'!M7, \"\")","v":""},{"$f":"IF('Cover Sheet'!$F$17 = TRUE, 'QUANT & COMP THINKING'!N7, \"\")","v":""},{"$f":"IF('Cover Sheet'!$F$17 = TRUE, 'QUANT & COMP THINKING'!G8, \"\")","v":""},{"$f":"IF('Cover Sheet'!$F$17 = TRUE, 'QUANT & COMP THINKING'!H8, \"\")","v":""},{"$f":"IF('Cover Sheet'!$F$17 = TRUE, 'QUANT & COMP THINKING'!I8, \"\")","v":""},{"$f":"IF('Cover Sheet'!$F$17 = TRUE, 'QUANT & COMP THINKING'!J8, \"\")","v":""},{"$f":"IF('Cover Sheet'!$F$17 = TRUE, 'QUANT & COMP THINKING'!K8, \"\")","v":""},{"$f":"IF('Cover Sheet'!$F$17 = TRUE, 'QUANT & COMP THINKING'!L8, \"\")","v":""},{"$f":"IF('Cover Sheet'!$F$17 = TRUE, 'QUANT & COMP THINKING'!M8, \"\")","v":""},{"$f":"IF('Cover Sheet'!$F$17 = TRUE, 'QUANT & COMP THINKING'!N8, \"\")","v":""},{"$f":"IF('Cover Sheet'!$F$17 = TRUE, 'QUANT & COMP THINKING'!G9, \"\")","v":""},{"$f":"IF('Cover Sheet'!$F$17 = TRUE, 'QUANT & COMP THINKING'!H9, \"\")","v":""},{"$f":"IF('Cover Sheet'!$F$17 = TRUE, 'QUANT & COMP THINKING'!I9, \"\")","v":""},{"$f":"IF('Cover Sheet'!$F$17 = TRUE, 'QUANT & COMP THINKING'!J9, \"\")","v":""},{"$f":"IF('Cover Sheet'!$F$17 = TRUE, 'QUANT & COMP THINKING'!K9, \"\")","v":""},{"$f":"IF('Cover Sheet'!$F$17 = TRUE, 'QUANT & COMP THINKING'!L9, \"\")","v":""},{"$f":"IF('Cover Sheet'!$F$17 = TRUE, 'QUANT & COMP THINKING'!M9, \"\")","v":""},{"$f":"IF('Cover Sheet'!$F$17 = TRUE, 'QUANT & COMP THINKING'!N9, \"\")","v":""},{"$f":"IF('Cover Sheet'!$F$17 = TRUE, 'QUANT & COMP THINKING'!G10, \"\")","v":""},{"$f":"IF('Cover Sheet'!$F$17 = TRUE, 'QUANT & COMP THINKING'!H10, \"\")","v":""},{"$f":"IF('Cover Sheet'!$F$17 = TRUE, 'QUANT & COMP THINKING'!I10, \"\")","v":""},{"$f":"IF('Cover Sheet'!$F$17 = TRUE, 'QUANT & COMP THINKING'!J10, \"\")","v":""},{"$f":"IF('Cover Sheet'!$F$17 = TRUE, 'QUANT & COMP THINKING'!K10, \"\")","v":""},{"$f":"IF('Cover Sheet'!$F$17 = TRUE, 'QUANT & COMP THINKING'!L10, \"\")","v":""},{"$f":"IF('Cover Sheet'!$F$17 = TRUE, 'QUANT & COMP THINKING'!M10, \"\")","v":""},{"$f":"IF('Cover Sheet'!$F$17 = TRUE, 'QUANT & COMP THINKING'!N10, \"\")","v":""},{"$f":"IF('Cover Sheet'!$F$17 = TRUE, 'QUANT & COMP THINKING'!G11, \"\")","v":""},{"$f":"IF('Cover Sheet'!$F$17 = TRUE, 'QUANT & COMP THINKING'!H11, \"\")","v":""},{"$f":"IF('Cover Sheet'!$F$17 = TRUE, 'QUANT & COMP THINKING'!I11, \"\")","v":""},{"$f":"IF('Cover Sheet'!$F$17 = TRUE, 'QUANT & COMP THINKING'!J11, \"\")","v":""},{"$f":"IF('Cover Sheet'!$F$17 = TRUE, 'QUANT & COMP THINKING'!K11, \"\")","v":""},{"$f":"IF('Cover Sheet'!$F$17 = TRUE, 'QUANT & COMP THINKING'!L11, \"\")","v":""},{"$f":"IF('Cover Sheet'!$F$17 = TRUE, 'QUANT & COMP THINKING'!M11, \"\")","v":""},{"$f":"IF('Cover Sheet'!$F$17 = TRUE, 'QUANT & COMP THINKING'!N11, \"\")","v":""},{"$f":"IF('Cover Sheet'!$F$17 = TRUE, 'QUANT & COMP THINKING'!G12, \"\")","v":""},{"$f":"IF('Cover Sheet'!$F$17 = TRUE, 'QUANT & COMP THINKING'!H12, \"\")","v":""},{"$f":"IF('Cover Sheet'!$F$17 = TRUE, 'QUANT & COMP THINKING'!I12, \"\")","v":""},{"$f":"IF('Cover Sheet'!$F$17 = TRUE, 'QUANT & COMP THINKING'!J12, \"\")","v":""},{"$f":"IF('Cover Sheet'!$F$17 = TRUE, 'QUANT & COMP THINKING'!K12, \"\")","v":""},{"$f":"IF('Cover Sheet'!$F$17 = TRUE, 'QUANT & COMP THINKING'!L12, \"\")","v":""},{"$f":"IF('Cover Sheet'!$F$17 = TRUE, 'QUANT & COMP THINKING'!M12, \"\")","v":""},{"$f":"IF('Cover Sheet'!$F$17 = TRUE, 'QUANT & COMP THINKING'!N12, \"\")","v":""}]
[null,{"$f":"IF('Cover Sheet'!$F$18 = TRUE, \"Reasoning in the Natural Sciences\", \"\")","v":""},{"$f":"IF('Cover Sheet'!$F$18 = TRUE, 'REASONING IN NATURAL SCIENCES'!G7, \"\")","v":""},{"$f":"IF('Cover Sheet'!$F$18 = TRUE, 'REASONING IN NATURAL SCIENCES'!H7, \"\")","v":""},{"$f":"IF('Cover Sheet'!$F$18 = TRUE, 'REASONING IN NATURAL SCIENCES'!I7, \"\")","v":""},{"$f":"IF('Cover Sheet'!$F$18 = TRUE, 'REASONING IN NATURAL SCIENCES'!J7, \"\")","v":""},{"$f":"IF('Cover Sheet'!$F$18 = TRUE, 'REASONING IN NATURAL SCIENCES'!K7, \"\")","v":""},{"$f":"IF('Cover Sheet'!$F$18 = TRUE, 'REASONING IN NATURAL SCIENCES'!L7, \"\")","v":""},{"$f":"IF('Cover Sheet'!$F$18 = TRUE, 'REASONING IN NATURAL SCIENCES'!M7, \"\")","v":""},{"$f":"IF('Cover Sheet'!$F$18 = TRUE, 'REASONING IN NATURAL SCIENCES'!N7, \"\")","v":""},{"$f":"IF('Cover Sheet'!$F$18 = TRUE, 'REASONING IN NATURAL SCIENCES'!G8, \"\")","v":""},{"$f":"IF('Cover Sheet'!$F$18 = TRUE, 'REASONING IN NATURAL SCIENCES'!H8, \"\")","v":""},{"$f":"IF('Cover Sheet'!$F$18 = TRUE, 'REASONING IN NATURAL SCIENCES'!I8, \"\")","v":""},{"$f":"IF('Cover Sheet'!$F$18 = TRUE, 'REASONING IN NATURAL SCIENCES'!J8, \"\")","v":""},{"$f":"IF('Cover Sheet'!$F$18 = TRUE, 'REASONING IN NATURAL SCIENCES'!K8, \"\")","v":""},{"$f":"IF('Cover Sheet'!$F$18 = TRUE, 'REASONING IN NATURAL SCIENCES'!L8, \"\")","v":""},{"$f":"IF('Cover Sheet'!$F$18 = TRUE, 'REASONING IN NATURAL SCIENCES'!M8, \"\")","v":""},{"$f":"IF('Cover Sheet'!$F$18 = TRUE, 'REASONING IN NATURAL SCIENCES'!N8, \"\")","v":""},{"$f":"IF('Cover Sheet'!$F$18 = TRUE, 'REASONING IN NATURAL SCIENCES'!G9, \"\")","v":""},{"$f":"IF('Cover Sheet'!$F$18 = TRUE, 'REASONING IN NATURAL SCIENCES'!H9, \"\")","v":""},{"$f":"IF('Cover Sheet'!$F$18 = TRUE, 'REASONING IN NATURAL SCIENCES'!I9, \"\")","v":""},{"$f":"IF('Cover Sheet'!$F$18 = TRUE, 'REASONING IN NATURAL SCIENCES'!J9, \"\")","v":""},{"$f":"IF('Cover Sheet'!$F$18 = TRUE, 'REASONING IN NATURAL SCIENCES'!K9, \"\")","v":""},{"$f":"IF('Cover Sheet'!$F$18 = TRUE, 'REASONING IN NATURAL SCIENCES'!L9, \"\")","v":""},{"$f":"IF('Cover Sheet'!$F$18 = TRUE, 'REASONING IN NATURAL SCIENCES'!M9, \"\")","v":""},{"$f":"IF('Cover Sheet'!$F$18 = TRUE, 'REASONING IN NATURAL SCIENCES'!N9, \"\")","v":""},{"$f":"IF('Cover Sheet'!$F$18 = TRUE, 'REASONING IN NATURAL SCIENCES'!G10, \"\")","v":""},{"$f":"IF('Cover Sheet'!$F$18 = TRUE, 'REASONING IN NATURAL SCIENCES'!H10, \"\")","v":""},{"$f":"IF('Cover Sheet'!$F$18 = TRUE, 'REASONING IN NATURAL SCIENCES'!I10, \"\")","v":""},{"$f":"IF('Cover Sheet'!$F$18 = TRUE, 'REASONING IN NATURAL SCIENCES'!J10, \"\")","v":""},{"$f":"IF('Cover Sheet'!$F$18 = TRUE, 'REASONING IN NATURAL SCIENCES'!K10, \"\")","v":""},{"$f":"IF('Cover Sheet'!$F$18 = TRUE, 'REASONING IN NATURAL SCIENCES'!L10, \"\")","v":""},{"$f":"IF('Cover Sheet'!$F$18 = TRUE, 'REASONING IN NATURAL SCIENCES'!M10, \"\")","v":""},{"$f":"IF('Cover Sheet'!$F$18 = TRUE, 'REASONING IN NATURAL SCIENCES'!N10, \"\")","v":""}]
[null,{"$f":"IF('Cover Sheet'!$F$19 = TRUE, \"Critique and Practice in Design and the Arts\", \"\")","v":""},{"$f":"IF('Cover Sheet'!$F$19 = TRUE, 'DESIGN AND THE ARTS'!G7, \"\")","v":""},{"$f":"IF('Cover Sheet'!$F$19 = TRUE, 'DESIGN AND THE ARTS'!H7, \"\")","v":""},{"$f":"IF('Cover Sheet'!$F$19 = TRUE, 'DESIGN AND THE ARTS'!I7, \"\")","v":""},{"$f":"IF('Cover Sheet'!$F$19 = TRUE, 'DESIGN AND THE ARTS'!J7, \"\")","v":""},{"$f":"IF('Cover Sheet'!$F$19 = TRUE, 'DESIGN AND THE ARTS'!K7, \"\")","v":""},{"$f":"IF('Cover Sheet'!$F$19 = TRUE, 'DESIGN AND THE ARTS'!L7, \"\")","v":""},{"$f":"IF('Cover Sheet'!$F$19 = TRUE, 'DESIGN AND THE ARTS'!M7, \"\")","v":""},{"$f":"IF('Cover Sheet'!$F$19 = TRUE, 'DESIGN AND THE ARTS'!N7, \"\")","v":""},{"$f":"IF('Cover Sheet'!$F$19 = TRUE, 'DESIGN AND THE ARTS'!G8, \"\")","v":""},{"$f":"IF('Cover Sheet'!$F$19 = TRUE, 'DESIGN AND THE ARTS'!H8, \"\")","v":""},{"$f":"IF('Cover Sheet'!$F$19 = TRUE, 'DESIGN AND THE ARTS'!I8, \"\")","v":""},{"$f":"IF('Cover Sheet'!$F$19 = TRUE, 'DESIGN AND THE ARTS'!J8, \"\")","v":""},{"$f":"IF('Cover Sheet'!$F$19 = TRUE, 'DESIGN AND THE ARTS'!K8, \"\")","v":""},{"$f":"IF('Cover Sheet'!$F$19 = TRUE, 'DESIGN AND THE ARTS'!L8, \"\")","v":""},{"$f":"IF('Cover Sheet'!$F$19 = TRUE, 'DESIGN AND THE ARTS'!M8, \"\")","v":""},{"$f":"IF('Cover Sheet'!$F$19 = TRUE, 'DESIGN AND THE ARTS'!N8, \"\")","v":""},{"$f":"IF('Cover Sheet'!$F$19 = TRUE, 'DESIGN AND THE ARTS'!G9, \"\")","v":""},{"$f":"IF('Cover Sheet'!$F$19 = TRUE, 'DESIGN AND THE ARTS'!H9, \"\")","v":""},{"$f":"IF('Cover Sheet'!$F$19 = TRUE, 'DESIGN AND THE ARTS'!I9, \"\")","v":""},{"$f":"IF('Cover Sheet'!$F$19 = TRUE, 'DESIGN AND THE ARTS'!J9, \"\")","v":""},{"$f":"IF('Cover Sheet'!$F$19 = TRUE, 'DESIGN AND THE ARTS'!K9, \"\")","v":""},{"$f":"IF('Cover Sheet'!$F$19 = TRUE, 'DESIGN AND THE ARTS'!L9, \"\")","v":""},{"$f":"IF('Cover Sheet'!$F$19 = TRUE, 'DESIGN AND THE ARTS'!M9, \"\")","v":""},{"$f":"IF('Cover Sheet'!$F$19 = TRUE, 'DESIGN AND THE ARTS'!N9, \"\")","v":""},{"$f":"IF('Cover Sheet'!$F$19 = TRUE, 'DESIGN AND THE ARTS'!G10, \"\")","v":""},{"$f":"IF('Cover Sheet'!$F$19 = TRUE, 'DESIGN AND THE ARTS'!H10, \"\")","v":""},{"$f":"IF('Cover Sheet'!$F$19 = TRUE, 'DESIGN AND THE ARTS'!I10, \"\")","v":""},{"$f":"IF('Cover Sheet'!$F$19 = TRUE, 'DESIGN AND THE ARTS'!J10, \"\")","v":""},{"$f":"IF('Cover Sheet'!$F$19 = TRUE, 'DESIGN AND THE ARTS'!K10, \"\")","v":""},{"$f":"IF('Cover Sheet'!$F$19 = TRUE, 'DESIGN AND THE ARTS'!L10, \"\")","v":""},{"$f":"IF('Cover Sheet'!$F$19 = TRUE, 'DESIGN AND THE ARTS'!M10, \"\")","v":""},{"$f":"IF('Cover Sheet'!$F$19 = TRUE, 'DESIGN AND THE ARTS'!N10, \"\")","v":""},{"$f":"IF('Cover Sheet'!$F$19 = TRUE, 'DESIGN AND THE ARTS'!G11, \"\")","v":""},{"$f":"IF('Cover Sheet'!$F$19 = TRUE, 'DESIGN AND THE ARTS'!H11, \"\")","v":""},{"$f":"IF('Cover Sheet'!$F$19 = TRUE, 'DESIGN AND THE ARTS'!I11, \"\")","v":""},{"$f":"IF('Cover Sheet'!$F$19 = TRUE, 'DESIGN AND THE ARTS'!J11, \"\")","v":""},{"$f":"IF('Cover Sheet'!$F$19 = TRUE, 'DESIGN AND THE ARTS'!K11, \"\")","v":""},{"$f":"IF('Cover Sheet'!$F$19 = TRUE, 'DESIGN AND THE ARTS'!L11, \"\")","v":""},{"$f":"IF('Cover Sheet'!$F$19 = TRUE, 'DESIGN AND THE ARTS'!M11, \"\")","v":""},{"$f":"IF('Cover Sheet'!$F$19 = TRUE, 'DESIGN AND THE ARTS'!N11, \"\")","v":""}]
[null,{"$f":"IF('Cover Sheet'!$F$20 = TRUE, \"Reasoning in the Social Sciences\", \"\")","v":""},{"$f":"IF('Cover Sheet'!$F$20 = TRUE, 'REASONING IN SOCIAL SCIENCES'!G7, \"\")","v":""},{"$f":"IF('Cover Sheet'!$F$20 = TRUE, 'REASONING IN SOCIAL SCIENCES'!H7, \"\")","v":""},{"$f":"IF('Cover Sheet'!$F$20 = TRUE, 'REASONING IN SOCIAL SCIENCES'!I7, \"\")","v":""},{"$f":"IF('Cover Sheet'!$F$20 = TRUE, 'REASONING IN SOCIAL SCIENCES'!J7, \"\")","v":""},{"$f":"IF('Cover Sheet'!$F$20 = TRUE, 'REASONING IN SOCIAL SCIENCES'!K7, \"\")","v":""},{"$f":"IF('Cover Sheet'!$F$20 = TRUE, 'REASONING IN SOCIAL SCIENCES'!L7, \"\")","v":""},{"$f":"IF('Cover Sheet'!$F$20 = TRUE, 'REASONING IN SOCIAL SCIENCES'!M7, \"\")","v":""},{"$f":"IF('Cover Sheet'!$F$20 = TRUE, 'REASONING IN SOCIAL SCIENCES'!N7, \"\")","v":""},{"$f":"IF('Cover Sheet'!$F$20 = TRUE, 'REASONING IN SOCIAL SCIENCES'!G8, \"\")","v":""},{"$f":"IF('Cover Sheet'!$F$20 = TRUE, 'REASONING IN SOCIAL SCIENCES'!H8, \"\")","v":""},{"$f":"IF('Cover Sheet'!$F$20 = TRUE, 'REASONING IN SOCIAL SCIENCES'!I8, \"\")","v":""},{"$f":"IF('Cover Sheet'!$F$20 = TRUE, 'REASONING IN SOCIAL SCIENCES'!J8, \"\")","v":""},{"$f":"IF('Cover Sheet'!$F$20 = TRUE, 'REASONING IN SOCIAL SCIENCES'!K8, \"\")","v":""},{"$f":"IF('Cover Sheet'!$F$20 = TRUE, 'REASONING IN SOCIAL SCIENCES'!L8, \"\")","v":""},{"$f":"IF('Cover Sheet'!$F$20 = TRUE, 'REASONING IN SOCIAL SCIENCES'!M8, \"\")","v":""},{"$f":"IF('Cover Sheet'!$F$20 = TRUE, 'REASONING IN SOCIAL SCIENCES'!N8, \"\")","v":""},{"$f":"IF('Cover Sheet'!$F$20 = TRUE, 'REASONING IN SOCIAL SCIENCES'!G9, \"\")","v":""},{"$f":"IF('Cover Sheet'!$F$20 = TRUE, 'REASONING IN SOCIAL SCIENCES'!H9, \"\")","v":""},{"$f":"IF('Cover Sheet'!$F$20 = TRUE, 'REASONING IN SOCIAL SCIENCES'!I9, \"\")","v":""},{"$f":"IF('Cover Sheet'!$F$20 = TRUE, 'REASONING IN SOCIAL SCIENCES'!J9, \"\")","v":""},{"$f":"IF('Cover Sheet'!$F$20 = TRUE, 'REASONING IN SOCIAL SCIENCES'!K9, \"\")","v":""},{"$f":"IF('Cover Sheet'!$F$20 = TRUE, 'REASONING IN SOCIAL SCIENCES'!L9, \"\")","v":""},{"$f":"IF('Cover Sheet'!$F$20 = TRUE, 'REASONING IN SOCIAL SCIENCES'!M9, \"\")","v":""},{"$f":"IF('Cover Sheet'!$F$20 = TRUE, 'REASONING IN SOCIAL SCIENCES'!N9, \"\")","v":""},{"$f":"IF('Cover Sheet'!$F$20 = TRUE, 'REASONING IN SOCIAL SCIENCES'!G10, \"\")","v":""},{"$f":"IF('Cover Sheet'!$F$20 = TRUE, 'REASONING IN SOCIAL SCIENCES'!H10, \"\")","v":""},{"$f":"IF('Cover Sheet'!$F$20 = TRUE, 'REASONING IN SOCIAL SCIENCES'!I10, \"\")","v":""},{"$f":"IF('Cover Sheet'!$F$20 = TRUE, 'REASONING IN SOCIAL SCIENCES'!J10, \"\")","v":""},{"$f":"IF('Cover Sheet'!$F$20 = TRUE, 'REASONING IN SOCIAL SCIENCES'!K10, \"\")","v":""},{"$f":"IF('Cover Sheet'!$F$20 = TRUE, 'REASONING IN SOCIAL SCIENCES'!L10, \"\")","v":""},{"$f":"IF('Cover Sheet'!$F$20 = TRUE, 'REASONING IN SOCIAL SCIENCES'!M10, \"\")","v":""},{"$f":"IF('Cover Sheet'!$F$20 = TRUE, 'REASONING IN SOCIAL SCIENCES'!N10, \"\")","v":""}]
[null,{"$f":"IF('Cover Sheet'!$F$21 = TRUE, \"Critical Thinking in the Humanities\", \"\")","v":""},{"$f":"IF('Cover Sheet'!$F$21 = TRUE, HUMANITIES!G7, \"\")","v":""},{"$f":"IF('Cover Sheet'!$F$21 = TRUE, HUMANITIES!H7, \"\")","v":""},{"$f":"IF('Cover Sheet'!$F$21 = TRUE, HUMANITIES!I7, \"\")","v":""},{"$f":"IF('Cover Sheet'!$F$21 = TRUE, HUMANITIES!J7, \"\")","v":""},{"$f":"IF('Cover Sheet'!$F$21 = TRUE, HUMANITIES!K7, \"\")","v":""},{"$f":"IF('Cover Sheet'!$F$21 = TRUE, HUMANITIES!L7, \"\")","v":""},{"$f":"IF('Cover Sheet'!$F$21 = TRUE, HUMANITIES!M7, \"\")","v":""},{"$f":"IF('Cover Sheet'!$F$21 = TRUE, HUMANITIES!N7, \"\")","v":""},{"$f":"IF('Cover Sheet'!$F$21 = TRUE, HUMANITIES!G8, \"\")","v":""},{"$f":"IF('Cover Sheet'!$F$21 = TRUE, HUMANITIES!H8, \"\")","v":""},{"$f":"IF('Cover Sheet'!$F$21 = TRUE, HUMANITIES!I8, \"\")","v":""},{"$f":"IF('Cover Sheet'!$F$21 = TRUE, HUMANITIES!J8, \"\")","v":""},{"$f":"IF('Cover Sheet'!$F$21 = TRUE, HUMANITIES!K8, \"\")","v":""},{"$f":"IF('Cover Sheet'!$F$21 = TRUE, HUMANITIES!L8, \"\")","v":""},{"$f":"IF('Cover Sheet'!$F$21 = TRUE, HUMANITIES!M8, \"\")","v":""},{"$f":"IF('Cover Sheet'!$F$21 = TRUE, HUMANITIES!N8, \"\")","v":""},{"$f":"IF('Cover Sheet'!$F$21 = TRUE, HUMANITIES!G9, \"\")","v":""},{"$f":"IF('Cover Sheet'!$F$21 = TRUE, HUMANITIES!H9, \"\")","v":""},{"$f":"IF('Cover Sheet'!$F$21 = TRUE, HUMANITIES!I9, \"\")","v":""},{"$f":"IF('Cover Sheet'!$F$21 = TRUE, HUMANITIES!J9, \"\")","v":""},{"$f":"IF('Cover Sheet'!$F$21 = TRUE, HUMANITIES!K9, \"\")","v":""},{"$f":"IF('Cover Sheet'!$F$21 = TRUE, HUMANITIES!L9, \"\")","v":""},{"$f":"IF('Cover Sheet'!$F$21 = TRUE, HUMANITIES!M9, \"\")","v":""},{"$f":"IF('Cover Sheet'!$F$21 = TRUE, HUMANITIES!N9, \"\")","v":""},{"$f":"IF('Cover Sheet'!$F$21 = TRUE, HUMANITIES!G10, \"\")","v":""},{"$f":"IF('Cover Sheet'!$F$21 = TRUE, HUMANITIES!H10, \"\")","v":""},{"$f":"IF('Cover Sheet'!$F$21 = TRUE, HUMANITIES!I10, \"\")","v":""},{"$f":"IF('Cover Sheet'!$F$21 = TRUE, HUMANITIES!J10, \"\")","v":""},{"$f":"IF('Cover Sheet'!$F$21 = TRUE, HUMANITIES!K10, \"\")","v":""},{"$f":"IF('Cover Sheet'!$F$21 = TRUE, HUMANITIES!L10, \"\")","v":""},{"$f":"IF('Cover Sheet'!$F$21 = TRUE, HUMANITIES!M10, \"\")","v":""},{"$f":"IF('Cover Sheet'!$F$21 = TRUE, HUMANITIES!N10, \"\")","v":""}]
[null,{"$f":"IF('Cover Sheet'!$F$22 = TRUE, \"Critical Analysis of Equity and Identity in the United States\", \"\")","v":""},{"$f":"IF('Cover Sheet'!$F$22 = TRUE, 'IDENTITY AND EQUITY'!G7, \"\")","v":""},{"$f":"IF('Cover Sheet'!$F$22 = TRUE, 'IDENTITY AND EQUITY'!H7, \"\")","v":""},{"$f":"IF('Cover Sheet'!$F$22 = TRUE, 'IDENTITY AND EQUITY'!I7, \"\")","v":""},{"$f":"IF('Cover Sheet'!$F$22 = TRUE, 'IDENTITY AND EQUITY'!J7, \"\")","v":""},{"$f":"IF('Cover Sheet'!$F$22 = TRUE, 'IDENTITY AND EQUITY'!K7, \"\")","v":""},{"$f":"IF('Cover Sheet'!$F$22 = TRUE, 'IDENTITY AND EQUITY'!L7, \"\")","v":""},{"$f":"IF('Cover Sheet'!$F$22 = TRUE, 'IDENTITY AND EQUITY'!M7, \"\")","v":""},{"$f":"IF('Cover Sheet'!$F$22 = TRUE, 'IDENTITY AND EQUITY'!N7, \"\")","v":""},{"$f":"IF('Cover Sheet'!$F$22 = TRUE, 'IDENTITY AND EQUITY'!G8, \"\")","v":""},{"$f":"IF('Cover Sheet'!$F$22 = TRUE, 'IDENTITY AND EQUITY'!H8, \"\")","v":""},{"$f":"IF('Cover Sheet'!$F$22 = TRUE, 'IDENTITY AND EQUITY'!I8, \"\")","v":""},{"$f":"IF('Cover Sheet'!$F$22 = TRUE, 'IDENTITY AND EQUITY'!J8, \"\")","v":""},{"$f":"IF('Cover Sheet'!$F$22 = TRUE, 'IDENTITY AND EQUITY'!K8, \"\")","v":""},{"$f":"IF('Cover Sheet'!$F$22 = TRUE, 'IDENTITY AND EQUITY'!L8, \"\")","v":""},{"$f":"IF('Cover Sheet'!$F$22 = TRUE, 'IDENTITY AND EQUITY'!M8, \"\")","v":""},{"$f":"IF('Cover Sheet'!$F$22 = TRUE, 'IDENTITY AND EQUITY'!N8, \"\")","v":""},{"$f":"IF('Cover Sheet'!$F$22 = TRUE, 'IDENTITY AND EQUITY'!G9, \"\")","v":""},{"$f":"IF('Cover Sheet'!$F$22 = TRUE, 'IDENTITY AND EQUITY'!H9, \"\")","v":""},{"$f":"IF('Cover Sheet'!$F$22 = TRUE, 'IDENTITY AND EQUITY'!I9, \"\")","v":""},{"$f":"IF('Cover Sheet'!$F$22 = TRUE, 'IDENTITY AND EQUITY'!J9, \"\")","v":""},{"$f":"IF('Cover Sheet'!$F$22 = TRUE, 'IDENTITY AND EQUITY'!K9, \"\")","v":""},{"$f":"IF('Cover Sheet'!$F$22 = TRUE, 'IDENTITY AND EQUITY'!L9, \"\")","v":""},{"$f":"IF('Cover Sheet'!$F$22 = TRUE, 'IDENTITY AND EQUITY'!M9, \"\")","v":""},{"$f":"IF('Cover Sheet'!$F$22 = TRUE, 'IDENTITY AND EQUITY'!N9, \"\")","v":""},{"$f":"IF('Cover Sheet'!$F$22 = TRUE, 'IDENTITY AND EQUITY'!G10, \"\")","v":""},{"$f":"IF('Cover Sheet'!$F$22 = TRUE, 'IDENTITY AND EQUITY'!H10, \"\")","v":""},{"$f":"IF('Cover Sheet'!$F$22 = TRUE, 'IDENTITY AND EQUITY'!I10, \"\")","v":""},{"$f":"IF('Cover Sheet'!$F$22 = TRUE, 'IDENTITY AND EQUITY'!J10, \"\")","v":""},{"$f":"IF('Cover Sheet'!$F$22 = TRUE, 'IDENTITY AND EQUITY'!K10, \"\")","v":""},{"$f":"IF('Cover Sheet'!$F$22 = TRUE, 'IDENTITY AND EQUITY'!L10, \"\")","v":""},{"$f":"IF('Cover Sheet'!$F$22 = TRUE, 'IDENTITY AND EQUITY'!M10, \"\")","v":""},{"$f":"IF('Cover Sheet'!$F$22 = TRUE, 'IDENTITY AND EQUITY'!N10, \"\")","v":""},{"$f":"IF('Cover Sheet'!$F$22 = TRUE, 'IDENTITY AND EQUITY'!G11, \"\")","v":""},{"$f":"IF('Cover Sheet'!$F$22 = TRUE, 'IDENTITY AND EQUITY'!H11, \"\")","v":""},{"$f":"IF('Cover Sheet'!$F$22 = TRUE, 'IDENTITY AND EQUITY'!I11, \"\")","v":""},{"$f":"IF('Cover Sheet'!$F$22 = TRUE, 'IDENTITY AND EQUITY'!J11, \"\")","v":""},{"$f":"IF('Cover Sheet'!$F$22 = TRUE, 'IDENTITY AND EQUITY'!K11, \"\")","v":""},{"$f":"IF('Cover Sheet'!$F$22 = TRUE, 'IDENTITY AND EQUITY'!L11, \"\")","v":""},{"$f":"IF('Cover Sheet'!$F$22 = TRUE, 'IDENTITY AND EQUITY'!M11, \"\")","v":""},{"$f":"IF('Cover Sheet'!$F$22 = TRUE, 'IDENTITY AND EQUITY'!N11, \"\")","v":""}]
["Learning Outcome Areas",{"$f":"IF('Cover Sheet'!$F$27 = TRUE, \"Ethical Reasoning\", \"\")","v":""},{"$f":"IF('Cover Sheet'!$F$27 = TRUE, 'ETHICAL REASONING'!G7, \"\")","v":""},{"$f":"IF('Cover Sheet'!$F$27 = TRUE, 'ETHICAL REASONING'!H7, \"\")","v":""},{"$f":"IF('Cover Sheet'!$F$27 = TRUE, 'ETHICAL REASONING'!I7, \"\")","v":""},{"$f":"IF('Cover Sheet'!$F$27 = TRUE, 'ETHICAL REASONING'!J7, \"\")","v":""},{"$f":"IF('Cover Sheet'!$F$27 = TRUE, 'ETHICAL REASONING'!K7, \"\")","v":""},{"$f":"IF('Cover Sheet'!$F$27 = TRUE, 'ETHICAL REASONING'!L7, \"\")","v":""},{"$f":"IF('Cover Sheet'!$F$27 = TRUE, 'ETHICAL REASONING'!M7, \"\")","v":""},{"$f":"IF('Cover Sheet'!$F$27 = TRUE, 'ETHICAL REASONING'!N7, \"\")","v":""},{"$f":"IF('Cover Sheet'!$F$27 = TRUE, 'ETHICAL REASONING'!G8, \"\")","v":""},{"$f":"IF('Cover Sheet'!$F$27 = TRUE, 'ETHICAL REASONING'!H8, \"\")","v":""},{"$f":"IF('Cover Sheet'!$F$27 = TRUE, 'ETHICAL REASONING'!I8, \"\")","v":""},{"$f":"IF('Cover Sheet'!$F$27 = TRUE, 'ETHICAL REASONING'!J8, \"\")","v":""},{"$f":"IF('Cover Sheet'!$F$27 = TRUE, 'ETHICAL REASONING'!K8, \"\")","v":""},{"$f":"IF('Cover Sheet'!$F$27 = TRUE, 'ETHICAL REASONING'!L8, \"\")","v":""},{"$f":"IF('Cover Sheet'!$F$27 = TRUE, 'ETHICAL REASONING'!M8, \"\")","v":""},{"$f":"IF('Cover Sheet'!$F$27 = TRUE, 'ETHICAL REASONING'!N8, \"\")","v":""},{"$f":"IF('Cover Sheet'!$F$27 = TRUE, 'ETHICAL REASONING'!G9, \"\")","v":""},{"$f":"IF('Cover Sheet'!$F$27 = TRUE, 'ETHICAL REASONING'!H9, \"\")","v":""},{"$f":"IF('Cover Sheet'!$F$27 = TRUE, 'ETHICAL REASONING'!I9, \"\")","v":""},{"$f":"IF('Cover Sheet'!$F$27 = TRUE, 'ETHICAL REASONING'!J9, \"\")","v":""},{"$f":"IF('Cover Sheet'!$F$27 = TRUE, 'ETHICAL REASONING'!K9, \"\")","v":""},{"$f":"IF('Cover Sheet'!$F$27 = TRUE, 'ETHICAL REASONING'!L9, \"\")","v":""},{"$f":"IF('Cover Sheet'!$F$27 = TRUE, 'ETHICAL REASONING'!M9, \"\")","v":""},{"$f":"IF('Cover Sheet'!$F$27 = TRUE, 'ETHICAL REASONING'!N9, \"\")","v":""}]
[null,{"$f":"IF('Cover Sheet'!$F$28 = TRUE, \"Intercultural and Global Awareness\", \"\")","v":""},{"$f":"IF('Cover Sheet'!$F$28 = TRUE, 'INTERCULTURAL GLOBAL AWARENESS'!G7, \"\")","v":""},{"$f":"IF('Cover Sheet'!$F$28 = TRUE, 'INTERCULTURAL GLOBAL AWARENESS'!H7, \"\")","v":""},{"$f":"IF('Cover Sheet'!$F$28 = TRUE, 'INTERCULTURAL GLOBAL AWARENESS'!I7, \"\")","v":""},{"$f":"IF('Cover Sheet'!$F$28 = TRUE, 'INTERCULTURAL GLOBAL AWARENESS'!J7, \"\")","v":""},{"$f":"IF('Cover Sheet'!$F$28 = TRUE, 'INTERCULTURAL GLOBAL AWARENESS'!K7, \"\")","v":""},{"$f":"IF('Cover Sheet'!$F$28 = TRUE, 'INTERCULTURAL GLOBAL AWARENESS'!L7, \"\")","v":""},{"$f":"IF('Cover Sheet'!$F$28 = TRUE, 'INTERCULTURAL GLOBAL AWARENESS'!M7, \"\")","v":""},{"$f":"IF('Cover Sheet'!$F$28 = TRUE, 'INTERCULTURAL GLOBAL AWARENESS'!N7, \"\")","v":""},{"$f":"IF('Cover Sheet'!$F$28 = TRUE, 'INTERCULTURAL GLOBAL AWARENESS'!G8, \"\")","v":""},{"$f":"IF('Cover Sheet'!$F$28 = TRUE, 'INTERCULTURAL GLOBAL AWARENESS'!H8, \"\")","v":""},{"$f":"IF('Cover Sheet'!$F$28 = TRUE, 'INTERCULTURAL GLOBAL AWARENESS'!I8, \"\")","v":""},{"$f":"IF('Cover Sheet'!$F$28 = TRUE, 'INTERCULTURAL GLOBAL AWARENESS'!J8, \"\")","v":""},{"$f":"IF('Cover Sheet'!$F$28 = TRUE, 'INTERCULTURAL GLOBAL AWARENESS'!K8, \"\")","v":""},{"$f":"IF('Cover Sheet'!$F$28 = TRUE, 'INTERCULTURAL GLOBAL AWARENESS'!L8, \"\")","v":""},{"$f":"IF('Cover Sheet'!$F$28 = TRUE, 'INTERCULTURAL GLOBAL AWARENESS'!M8, \"\")","v":""},{"$f":"IF('Cover Sheet'!$F$28 = TRUE, 'INTERCULTURAL GLOBAL AWARENESS'!N8, \"\")","v":""},{"$f":"IF('Cover Sheet'!$F$28 = TRUE, 'INTERCULTURAL GLOBAL AWARENESS'!G9, \"\")","v":""},{"$f":"IF('Cover Sheet'!$F$28 = TRUE, 'INTERCULTURAL GLOBAL AWARENESS'!H9, \"\")","v":""},{"$f":"IF('Cover Sheet'!$F$28 = TRUE, 'INTERCULTURAL GLOBAL AWARENESS'!I9, \"\")","v":""},{"$f":"IF('Cover Sheet'!$F$28 = TRUE, 'INTERCULTURAL GLOBAL AWARENESS'!J9, \"\")","v":""},{"$f":"IF('Cover Sheet'!$F$28 = TRUE, 'INTERCULTURAL GLOBAL AWARENESS'!K9, \"\")","v":""},{"$f":"IF('Cover Sheet'!$F$28 = TRUE, 'INTERCULTURAL GLOBAL AWARENESS'!L9, \"\")","v":""},{"$f":"IF('Cover Sheet'!$F$28 = TRUE, 'INTERCULTURAL GLOBAL AWARENESS'!M9, \"\")","v":""},{"$f":"IF('Cover Sheet'!$F$28 = TRUE, 'INTERCULTURAL GLOBAL AWARENESS'!N9, \"\")","v":""}]

{"sheet":"List Entries","index":12,"n_rows":8,"n_cols":3,"rows_kept":8,"cut":false,"hidden":true,"merged":[]}
["*SELECT*",null,"*SELECT*"]
["Measured",null,"Direct Observation"]
["Not Measured",null,"Essay"]
[null,null,"Multiple Choice"]
[null,null,"Short Answer"]
[null,null,"True/False"]
[null,null,"See Attached Assignment"]
[null,null,"Other"]